[Event "Marmaris Karya-18 GM-May 2022"]
[Site "Icmeler-Marmaris"]
[Date "2022.05.12"]
[Round "5.1"]
[White "Caglar, Sila"]
[Black "Blesic, Vaso"]
[Result "1-0"]
[ECO "B03"]
[WhiteElo "2133"]
[BlackElo "2264"]
[Annotator "TA"]
[PlyCount "67"]
[EventDate "2022.05.11"]
[EventCountry "TUR"]
[SourceTitle "playchess.com"]
[Source "ChessBase"]
[SourceQuality "1"]
[TimeControl "5400+30"]

{[%evp 14,66,24,35,26,7,10,10,31,31,25,28,31,29,42,37,33,36,114,111,130,119,116,43,29,19,21,20,16,10,67,35,45,7,71,86,252,255,328,344,344,344,333,328,1234,1210,29984,29985,29982,1479,29992,29992,29998,29999,29999]} 1. e4 {[%emt 0:03:00][%cal Be2e4,Be4e5][%mdl 32]} Nf6 {[%emt 0:01:00][%cal Bg8f6,Bf6d5,Bd5b6][%mdl 32]} 2. e5 {[%emt 0:00:00]} Nd5 {[%emt 0:00:30]} 3. d4 {[%emt 0:00:00]} d6 {[%emt 0:00:00]} 4. c4 {[%emt 0:00:00]} Nb6 {[%emt 0:00:00]} 5. exd6 {[%emt 0:00:00]} cxd6 {[%emt 0:00:30]} 6. Nc3 {[%emt 0:00:30]} g6 {[%emt 0:00:00]} 7. a4 {[%emt 0:00:00]} a5 {[%emt 0:04:00] is the legacy move (7...Bg7).} 8. c5 {[%emt 0:00:00]} dxc5 {[%emt 0:04:30] B03: Alekhine's Defence: Four Pawns Attack.} 9. Bb5+ {[%emt 0:00:00]} N6d7 $1 {[%emt 0:01:30]} (9... Nc6 $2 10. d5 $18 (10. dxc5 Qxd1+ 11. Kxd1 Nd7 $11)) 10. Bg5 {[%emt 0:00:00] Black must now prevent Nd5.} h6 {[%emt 0:02:30] [#] The position is equal.} 11. Bh4 $146 {[%emt 0:00:30][%mdl 1024] White has compensation.} ({Predecessor:} 11. Be3 Bg7 12. dxc5 O-O 13. Qd2 Ne5 14. Bxh6 Bf5 15. Qf4 Bxh6 16. Qxh6 Qd4 17. Nh3 {1-0 (33) Dovzik,J (2360)-Wilke,J (2190) Massy 1992}) 11... Nc6 {[%emt 0:16:30]} 12. d5 {[%emt 0:00:00]} Nd4 {[%emt 0:02:30]} 13. d6 $1 {[%emt 0:01:00] And now Nd5 would win.} g5 {[%emt 0:06:30]} 14. Bg3 {[%emt 0:00:00]} exd6 {[%emt 0:04:30]} 15. Nf3 {[%emt 0:00:00]} Be7 {[%emt 0:20:30]} (15... Qe7+ $14 16. Kd2 Nxb5 17. Nxb5 Qd8) 16. Nxd4 $16 {[%emt 0:06:30]} cxd4 {[%emt 0:00:00]} 17. Qxd4 {[%emt 0:01:30]} O-O {[%emt 0:01:00]} 18. h4 {[%emt 0:03:30] White is much more active. The black rooks are badly placed.} (18. Bxd6 $6 Bxd6 19. Qxd6 Nf6 $11) ({Better is} 18. Rd1 $16) 18... Bf6 $14 {[%emt 0:01:30]} 19. Qxd6 {[%emt 0:00:00] hxg5 is the strong threat.} Re8+ {[%emt 0:04:30]} 20. Kf1 {[%emt 0:01:00]} gxh4 {[%emt 0:05:30]} ({But not} 20... Re6 21. Qd1 $16) 21. Bf4 $36 {[%emt 0:17:30][%mdl 2048] Hoping for Rd1. White fights for an advantage.} Re6 {[%emt 0:09:48]} (21... Ne5 $1 $11 22. Rd1 Bg4) 22. Qd5 {[%emt 0:02:30]} (22. Qd3 $5 {[%cal Ra1d1]}) 22... Nb6 {[%emt 0:08:46]} 23. Qh5 {[%emt 0:05:30] Black should prevent Rd1.} Bd7 {[%emt 0:00:41]} (23... Qd4 $11 24. Bxh6 (24. Qxh6 Bd7 $17) 24... Re5) 24. Rd1 $16 {[%emt 0:01:30] Strongly threatening Bxd7.} Bxb5+ {[%emt 0:00:16] A mistake that costs the game.} (24... Qc8 $16) 25. Nxb5 $18 {[%emt 0:00:30] The board is on fire.} ({Worse is} 25. axb5 Qc8 26. Kg1 Qe8 $11) 25... Qe7 {[%emt 0:00:43]} 26. Nc7 {[%emt 0:04:30] Inhibits Re8.} Rc8 {[%emt 0:01:37]} 27. Nxe6 {[%emt 0:02:30]} Qxe6 {[%emt 0:00:06]} 28. Bxh6 {[%emt 0:00:30]} Rc2 $2 {[%emt 0:01:06]} (28... Nd7 29. Rh3 Rc5) 29. Re1 {[%emt 0:02:30]} Qc4+ {[%emt 0:01:23]} 30. Kg1 {[%emt 0:00:30]} Qxa4 {[%emt 0:00:09] [#]} 31. Bg5 {[%emt 0:00:30]} (31. Re8+ $142 $3 {[%mdl 512]} Qxe8 32. Qg4+ Kh8 33. Rxh4 Qe1+ 34. Kh2 Qe5+ 35. f4 Qxf4+ 36. Qxf4) 31... Qb5 {[%emt 0:02:08] [#]} 32. Rxh4 $1 {[%emt 0:00:30] White mates.} Qxg5 {[%emt 0:01:11]} (32... Be5 33. Qh7+) 33. Re8+ {[%emt 0:00:00]} Kg7 {[%emt 0:00:07]} 34. Qh7# {[%emt 0:00:00] Weighted Error Value: White=0.09 (flawless) /Black=0.66} 1-0

[Event "Marmaris Karya-18 GM-May 2022"]
[Site "Icmeler-Marmaris"]
[Date "2022.05.12"]
[Round "5.2"]
[White "Sevdimaliyev, Urfan"]
[Black "Gunduz, Umut Erdem"]
[Result "0-1"]
[ECO "B01"]
[WhiteElo "2331"]
[BlackElo "2316"]
[Annotator "TA"]
[PlyCount "124"]
[EventDate "2022.05.11"]
[EventCountry "TUR"]
[SourceTitle "playchess.com"]
[Source "ChessBase"]
[SourceQuality "1"]
[TimeControl "5400+30"]

{[%evp 10,124,56,39,75,84,86,86,76,0,0,0,0,-39,-41,-31,22,0,66,-40,0,-33,-39,-28,-39,-63,-63,-86,-74,-104,-101,-95,-97,-98,-70,-79,-62,-67,-57,-64,-28,-33,-11,-20,-11,-14,-17,-10,-10,-13,0,0,0,-2,0,0,0,-83,-92,-80,-88,-115,-115,-102,-107,-122,-115,-133,-100,-110,-97,-102,-95,-102,-6,-104,-63,-91,-77,-131,-97,-88,-100,-322,-313,-324,-310,-322,-306,-319,-319,-310,-302,-424,-404,-435,-422,-551,-556,-601,-599,-6211,-6211,-6211,-6211,-6211,-6211,-29973,-29973,-29974,-29975,-29974,-29976,-29975,-29977,-29975,-29975]} 1. e4 {[%emt 0:02:00]} d5 {[%emt 0:09:00]} 2. exd5 {[%emt 0:00:30]} Qxd5 {[%emt 0:03:30]} 3. Nc3 {[%emt 0:00:30]} Qd6 {[%emt 0:00:30]} 4. d4 {[%emt 0:01:30]} Nf6 {[%emt 0:00:00]} 5. Nf3 {[%emt 0:00:30]} Bg4 {[%emt 0:01:00]} 6. h3 {[%emt 0:00:30]} Bxf3 {[%emt 0:00:30] B01: Scandinavian Defence.} 7. Qxf3 {[%emt 0:00:30]} (7. gxf3 Qb6 $11) 7... c6 {[%emt 0:00:30]} 8. Bf4 {[%emt 0:07:30]} Qxd4 {[%emt 0:04:30] [#] White is better.} 9. Rd1 {[%emt 0:01:30]} ({Better is} 9. Nb5 $1 $16 {[%cal Rb5d4]} cxb5 10. Bxb5+ Nbd7 11. Qxb7) 9... Qb6 $11 {[%emt 0:03:30]} 10. Bc4 {[%emt 0:03:30] And now 0-0 would win.} e6 $1 {[%emt 0:01:30]} 11. O-O {[%emt 0:03:30][%cal Oc4e6] Bxe6! is the strong threat.} (11. Qe2 $5 {[%cal Rc4e6]} Be7 12. O-O $15) 11... Be7 {[%emt 0:00:30]} 12. Ne4 {[%emt 0:14:30] [#]} Nxe4 $146 {[%emt 0:04:30]} (12... O-O $1 $15) ({Predecessor:} 12... O-O 13. Bg5 Qxb2 14. c3 Nd5 15. Bxe7 Nxe7 16. Rb1 Qc2 17. Bb3 {1-0 (17) Cornette,D (2404)-Sirotkina,N (2175) Monte Carlo 2017}) 13. Qxe4 {[%emt 0:00:00][%cal Oc4e6]} Nd7 {[%emt 0:00:30] [#]} (13... Qxb2 $2 14. Rb1 Qf6 15. Rxb7 $18) (13... O-O $11) 14. Be3 {[%emt 0:40:00]} (14. Rxd7 $1 $14 Kxd7 15. Re1) 14... Qc7 {[%emt 0:04:30]} 15. Bf4 {[%emt 0:02:15]} Qc8 {[%emt 0:00:30]} 16. Rfe1 {[%emt 0:01:34][%cal Oc4e6] Black must now prevent Bxe6!} Nf6 {[%emt 0:00:30]} 17. Qe5 {[%emt 0:00:26]} O-O {[%emt 0:00:30][%cal Bh8f8,Bf8d8,Bd8d4][%mdl 32]} 18. Rd3 {[%emt 0:00:16]} Rd8 {[%emt 0:06:30]} 19. Rg3 {[%emt 0:00:30] Hoping for Bh6.} Ne8 {[%emt 0:01:30]} 20. Bh6 {[%emt 0:13:36][%cal Rg3g7] Intending Rxg7+ and mate.} Bf6 {[%emt 0:00:30]} 21. Qh5 {[%emt 0:00:28]} Rd4 {[%emt 0:01:30]} 22. Qe2 {[%emt 0:01:30]} Qc7 {[%emt 0:02:30]} 23. c3 {[%emt 0:01:01]} Rd7 {[%emt 0:02:30]} 24. Qg4 {[%emt 0:00:15][%cal Oe1e6]} Rad8 {[%emt 0:13:30]} 25. Bf4 {[%emt 0:00:48]} e5 {[%emt 0:07:30]} 26. Bg5 {[%emt 0:00:40] Strongly threatening Bxf6.} Bxg5 {[%emt 0:02:30]} 27. Qxg5 {[%emt 0:00:02]} Rd1 {[%emt 0:02:30]} 28. Rge3 {[%emt 0:00:54]} Rxe1+ {[%emt 0:01:30]} 29. Rxe1 {[%emt 0:00:01]} Kf8 {[%emt 0:01:30]} 30. Bb3 {[%emt 0:02:45]} ({Much worse is} 30. Qxe5 Qxe5 31. Rxe5 Rd1+ 32. Bf1 Nd6 $15) (30. Rxe5 $2 f6 31. Rxe8+ Kxe8 $19) 30... h6 $36 {[%emt 0:02:30][%mdl 2048] Black is pushing.} 31. Qf5 {[%emt 0:01:00]} (31. Qxe5 Qxe5 32. Rxe5 Rd2 $17) 31... Nf6 {[%emt 0:03:30] Against Qh7} 32. Rxe5 {[%emt 0:00:23]} Rd2 {[%emt 0:00:30]} 33. g3 {[%emt 0:01:29]} (33. Qf4 $11) 33... Rxb2 {[%emt 0:01:21]} 34. Re1 {[%emt 0:00:02] aiming for Qc5+.} b6 {[%emt 0:00:53] Against Qc5+} 35. Qd3 {[%emt 0:00:55]} Qd7 {[%emt 0:00:26]} 36. Qe3 {[%emt 0:00:27]} Rd2 {[%emt 0:00:12]} 37. Qf4 {[%emt 0:00:31]} Qd6 {[%emt 0:02:02] Prevents Qb8+.} ({Don't play} 37... Kg8 $6 38. Qb8+ Kh7 39. Qf4 $11) 38. Qf5 {[%emt 0:00:06]} Qc7 {[%emt 0:00:16] Against Qc8+} 39. h4 {[%emt 0:00:28]} Rd8 {[%emt 0:00:27]} 40. Qf3 {[%emt 0:00:44]} c5 {[%emt 0:01:14]} 41. Bc4 {[%emt 0:00:14]} Re8 {[%emt 0:00:40]} (41... Qd7 $17) 42. Rd1 {[%emt 0:00:24]} (42. Rxe8+ $11 {keeps the balance.} Kxe8 43. Qa8+ Ke7 44. a4) 42... Qe7 {[%emt 0:00:14]} 43. Qf4 {[%emt 0:00:34]} Qe5 {[%emt 0:02:15]} 44. Qf3 {[%emt 0:01:04]} ({White should play} 44. Qxe5 Rxe5 45. a4) 44... Qe4 {[%emt 0:00:27]} 45. Qxe4 {[%emt 0:00:34]} Rxe4 {[%emt 0:00:05][%cal Be8e4,Be4a4,Ba4a3][%mdl 32]} ({Much weaker is} 45... Nxe4 $6 46. Rd7 $11) 46. Bd5 {[%emt 0:00:32] This costs White the game.} (46. Bb5 $17) 46... Nxd5 $19 {[%emt 0:01:59]} 47. Rxd5 {[%emt 0:00:01][%mdl 4096] Endgame KR-KR} Ra4 {[%emt 0:00:07]} 48. Rd2 {[%emt 0:00:06]} Ra3 {[%emt 0:00:01]} 49. Rc2 {[%emt 0:00:03]} Ke7 {[%emt 0:00:04]} 50. Kf1 {[%emt 0:00:12]} Kd6 {[%emt 0:00:13]} 51. Ke2 {[%emt 0:00:10]} (51. c4 {was necessary.}) 51... Kd5 {[%emt 0:00:16]} 52. Kd3 {[%emt 0:00:05]} b5 {[%emt 0:00:05][%cal Bb6b5,Bb5b4][%mdl 32] Threatens to win with ...b4.} 53. Rd2 {[%emt 0:00:46]} Kc6 {[%emt 0:00:13]} 54. Rb2 {[%emt 0:02:25]} b4 {[%emt 0:00:09]} 55. Rb3 {[%emt 0:00:25]} Rxb3 {[%emt 0:00:18]} 56. axb3 {[%emt 0:00:01]} bxc3 {[%emt 0:00:21]} 57. Kxc3 {[%emt 0:00:03] KP-KP} Kb5 {[%emt 0:00:32]} 58. h5 {[%emt 0:01:25]} f5 {[%emt 0:00:40] Black mates.} 59. f3 {[%emt 0:00:39]} a6 {[%emt 0:00:08][%cal Ba7a6,Ba6a5][%mdl 32]} 60. g4 {[%emt 0:00:36]} fxg4 {[%emt 0:00:11]} 61. fxg4 {[%emt 0:00:05]} a5 {[%emt 0:00:03]} 62. Kd3 {[%emt 0:00:39]} Kb4 {Weighted Error Value: White=0.50/Black=0.12 (very precise)} 0-1

[Event "Marmaris Karya-18 GM-May 2022"]
[Site "Icmeler-Marmaris"]
[Date "2022.05.12"]
[Round "5.2"]
[White "Gunduz, Umut Erdem"]
[Black "Toufighi, Homayoon"]
[Result "0-1"]
[ECO "B01"]
[WhiteElo "2316"]
[BlackElo "2439"]
[Annotator "TA"]
[PlyCount "124"]
[EventDate "2022.05.11"]
[EventCountry "TUR"]
[SourceTitle "playchess.com"]
[Source "ChessBase"]
[SourceQuality "1"]
[TimeControl "5400+30"]

{[%evp 10,124,45,38,69,66,96,83,87,0,0,0,0,0,0,-6,0,0,0,-32,-23,-43,-25,-26,-27,-61,-49,-74,-82,-86,-76,-76,-99,-84,-69,-73,-76,-69,-52,-65,-21,-42,-16,-32,-20,-16,-14,-14,-15,-16,0,0,0,-7,0,0,0,-95,-86,-82,-90,-95,-87,-110,-109,-116,-126,-125,-105,-126,-99,-101,-89,-94,-12,-89,-60,-102,-71,-122,-87,-106,-98,-310,-310,-308,-308,-307,-295,-335,-301,-318,-287,-356,-348,-385,-362,-564,-550,-631,-633,-6187,-6187,-6095,-6083,-6009,-5808,-29970,-29972,-29973,-29973,-29974,-29973,-29974,-29975,-29976,-29976]} 1. e4 {[%emt 0:02:00]} d5 {[%emt 0:09:00]} 2. exd5 {[%emt 0:00:30]} Qxd5 {[%emt 0:03:30]} 3. Nc3 {[%emt 0:00:30]} Qd6 {[%emt 0:00:30]} 4. d4 {[%emt 0:01:30]} Nf6 {[%emt 0:00:00]} 5. Nf3 {[%emt 0:00:30]} Bg4 {[%emt 0:01:00]} 6. h3 {[%emt 0:00:30]} Bxf3 {[%emt 0:00:30] B01: Scandinavian Defence.} 7. Qxf3 {[%emt 0:00:30]} (7. gxf3 e6 $11) 7... c6 {[%emt 0:00:30]} 8. Bf4 {[%emt 0:07:30]} Qxd4 {[%emt 0:04:30] [#] White is better.} 9. Rd1 {[%emt 0:01:30]} (9. Nb5 $1 $16 {[%cal Rb5d4]} cxb5 10. Bxb5+ Nbd7 11. Qxb7) 9... Qb6 $11 {[%emt 0:03:30]} 10. Bc4 {[%emt 0:03:30] aiming for 0-0.} e6 $1 {[%emt 0:01:30]} 11. O-O {[%emt 0:03:30][%cal Oc4e6]} Be7 {[%emt 0:00:30]} 12. Ne4 $1 {[%emt 0:14:30] [#]} Nxe4 $146 {[%emt 0:04:30]} ({Predecessor:} 12... O-O 13. Bg5 Qxb2 14. c3 Nd5 15. Bxe7 Nxe7 16. Rb1 Qc2 17. Bb3 {1-0 (17) Cornette,D (2404)-Sirotkina,N (2175) Monte Carlo 2017}) 13. Qxe4 {[%emt 0:00:00][%cal Oc4e6]} Nd7 {[%emt 0:00:30]} (13... Qxb2 $2 14. Rb1 Qf6 15. Rxb7 $18) 14. Be3 {[%emt 0:40:00] A strong pair of Bishops.} Qc7 {[%emt 0:04:30]} 15. Bf4 {[%emt 0:02:15]} Qc8 {[%emt 0:00:30]} 16. Rfe1 {[%emt 0:01:34][%cal Oc4e6]} Nf6 {[%emt 0:00:30]} 17. Qe5 {[%emt 0:00:26]} O-O {[%emt 0:00:30][%cal Bh8f8,Bf8d8,Bd8d4][%mdl 32]} 18. Rd3 {[%emt 0:00:16]} Rd8 {[%emt 0:06:30]} 19. Rg3 {[%emt 0:00:30] And now Bh6 would win.} Ne8 {[%emt 0:01:30]} 20. Bh6 {[%emt 0:13:36][%cal Rg3g7] Rxg7+ would kill now.} Bf6 {[%emt 0:00:30]} 21. Qh5 {[%emt 0:00:28]} Rd4 {[%emt 0:01:30]} 22. Qe2 {[%emt 0:01:30]} Qc7 {[%emt 0:02:30]} 23. c3 {[%emt 0:01:01]} Rd7 {[%emt 0:02:30]} 24. Qg4 {[%emt 0:00:15][%cal Oe1e6]} Rad8 {[%emt 0:13:30]} 25. Bf4 {[%emt 0:00:48]} e5 {[%emt 0:07:30]} 26. Bg5 {[%emt 0:00:40] Black must now prevent Bxf6.} Bxg5 {[%emt 0:02:30]} 27. Qxg5 {[%emt 0:00:02]} Rd1 {[%emt 0:02:30]} 28. Rge3 {[%emt 0:00:54]} Rxe1+ {[%emt 0:01:30]} 29. Rxe1 {[%emt 0:00:01]} Kf8 {[%emt 0:01:30]} 30. Bb3 {[%emt 0:02:45]} (30. Qxe5 Qxe5 31. Rxe5 Rd1+ 32. Bf1 Nd6 $15) ({Avoid the trap} 30. Rxe5 $2 f6 31. Rxe8+ Kxe8 $19) 30... h6 $36 {[%emt 0:02:30][%mdl 2048] Black is pushing.} 31. Qf5 {[%emt 0:01:00]} ({Of course not} 31. Qxe5 Qxe5 32. Rxe5 Rd2 $17) 31... Nf6 {[%emt 0:03:30]} 32. Rxe5 {[%emt 0:00:23]} Rd2 {[%emt 0:00:30]} 33. g3 {[%emt 0:01:29]} (33. Qf4 $11) 33... Rxb2 {[%emt 0:01:21]} 34. Re1 {[%emt 0:00:02] Hoping for Qc5+.} b6 {[%emt 0:00:53] Inhibits Qc5+.} 35. Qd3 {[%emt 0:00:55]} Qd7 {[%emt 0:00:26]} 36. Qe3 {[%emt 0:00:27]} Rd2 {[%emt 0:00:12]} 37. Qf4 {[%emt 0:00:31]} Qd6 {[%emt 0:02:02] Inhibits Qb8+.} (37... Kg8 $6 38. Qb8+ Kh7 39. Qf4 $11) 38. Qf5 {[%emt 0:00:06]} Qc7 {[%emt 0:00:16] Prevents Qc8+.} 39. h4 {[%emt 0:00:28]} Rd8 {[%emt 0:00:27]} 40. Qf3 {[%emt 0:00:44]} c5 {[%emt 0:01:14]} 41. Bc4 {[%emt 0:00:14]} Re8 {[%emt 0:00:40]} (41... h5 $17) 42. Rd1 {[%emt 0:00:24]} (42. Rxe8+ $11 Kxe8 43. Qa8+ Ke7 44. a4) 42... Qe7 {[%emt 0:00:14]} 43. Qf4 {[%emt 0:00:34]} Qe5 {[%emt 0:02:15]} 44. Qf3 {[%emt 0:01:04]} (44. Qxe5 $142 Rxe5 45. Rd8+ Re8 46. Rd3) 44... Qe4 {[%emt 0:00:27]} 45. Qxe4 {[%emt 0:00:34]} Rxe4 {[%emt 0:00:05][%cal Be8e4,Be4a4,Ba4a3][%mdl 32]} ({Much worse is} 45... Nxe4 $6 46. Rd7 $11) 46. Bd5 {[%emt 0:00:32] This move loses the game for White.} (46. Bb5 $17) 46... Nxd5 $19 {[%emt 0:01:59]} 47. Rxd5 {[%emt 0:00:01][%mdl 4096] Endgame KR-KR} Ra4 {[%emt 0:00:07]} 48. Rd2 {[%emt 0:00:06]} Ra3 {[%emt 0:00:01]} 49. Rc2 {[%emt 0:00:03]} Ke7 {[%emt 0:00:04]} 50. Kf1 {[%emt 0:00:12]} Kd6 {[%emt 0:00:13]} 51. Ke2 {[%emt 0:00:10]} Kd5 {[%emt 0:00:16]} 52. Kd3 {[%emt 0:00:05]} b5 {[%emt 0:00:05][%cal Bb6b5,Bb5b4][%mdl 32] Threatens to win with ...b4.} 53. Rd2 {[%emt 0:00:46]} (53. Kd2 {keeps fighting.}) 53... Kc6 {[%emt 0:00:13]} 54. Rb2 {[%emt 0:02:25]} b4 {[%emt 0:00:09]} 55. Rb3 {[%emt 0:00:25]} Rxb3 {[%emt 0:00:18]} 56. axb3 {[%emt 0:00:01]} bxc3 {[%emt 0:00:21]} 57. Kxc3 {[%emt 0:00:03] KP-KP} Kb5 {[%emt 0:00:32]} 58. h5 {[%emt 0:01:25]} f5 {[%emt 0:00:40] Black mates.} 59. f3 {[%emt 0:00:39]} a6 {[%emt 0:00:08][%cal Ba7a6,Ba6a5][%mdl 32]} 60. g4 {[%emt 0:00:36]} fxg4 {[%emt 0:00:11]} 61. fxg4 {[%emt 0:00:05]} a5 {[%emt 0:00:03]} 62. Kd3 {[%emt 0:00:39]} Kb4 {[%emt 0:00:05] Weighted Error Value: White=0.49/Black=0.10 (very precise)} 0-1

[Event "Marmaris Karya-18 GM-May 2022"]
[Site "Icmeler-Marmaris"]
[Date "2022.05.12"]
[Round "5.3"]
[White "Angun, Batu"]
[Black "Sevdimaliyev, Urfan"]
[Result "1-0"]
[ECO "A90"]
[WhiteElo "2326"]
[BlackElo "2331"]
[Annotator "TA"]
[PlyCount "111"]
[EventDate "2022.05.11"]
[EventCountry "TUR"]
[SourceTitle "playchess.com"]
[Source "ChessBase"]
[SourceQuality "1"]
[TimeControl "5400+30"]

{[%evp 21,111,27,38,37,59,58,98,83,89,90,91,91,104,99,98,104,125,116,143,130,176,167,152,117,126,99,86,94,77,57,64,51,44,43,84,81,59,77,133,33,40,40,50,14,17,8,7,6,9,0,52,52,73,64,88,88,88,81,88,74,74,74,154,154,138,8,8,8,8,8,552,538,439,0,0,0,0,0,0,0,0,0,0,0,9584,8002,8470,4655,29977,29978,29980,29971]} 1. d4 {[%emt 0:01:00]} f5 {[%emt 0:05:00]} 2. Nf3 {[%emt 0:01:30]} Nf6 {[%emt 0:00:00]} 3. g3 {[%emt 0:01:30]} e6 {[%emt 0:00:00]} 4. Bg2 {[%emt 0:00:30]} d5 {[%emt 0:00:30]} 5. O-O {[%emt 0:00:30]} Bd6 {[%emt 0:00:30]} 6. c4 {[%emt 0:00:00]} c6 7. b3 {[%emt 0:00:00]} Qe7 {[%emt 0:01:00]} 8. a4 {[%emt 0:01:30]} Nbd7 {[%emt 0:03:30]} 9. Ba3 {[%emt 0:00:00]} Bxa3 {[%emt 0:00:30]} 10. Nxa3 {[%emt 0:00:00][%cal Bb1a3,Ba3c2,Bc2e1,Be1d3][%mdl 32]} O-O {[%emt 0:00:00]} 11. Nc2 {[%emt 0:02:30]} Ne4 {[%emt 0:04:00]} 12. Nce1 {[%emt 0:03:30] A90: Dutch Defence: Miscellaneous and Modern Stonewall (with ...Bd6).} Ndf6 {[%emt 0:00:30]} 13. Nd3 {[%emt 0:01:30]} Bd7 {[%emt 0:01:30]} 14. Nfe5 {[%emt 0:09:30] White is better.} Be8 {[%emt 0:00:30] [#]} 15. c5 $146 {[%emt 0:02:30]} ({Predecessor:} 15. f3 Nd6 16. Qd2 Nf7 17. e3 Nxe5 18. dxe5 Nd7 19. Rfc1 Rf7 20. c5 g5 21. b4 {1-0 (40) Garcia Palermo,C (2465)-Cecconi,G (2206) Arvier 2008}) 15... Bh5 {[%emt 0:02:30]} 16. Qc2 {[%emt 0:07:30] Prevents Nc3.} Nd7 {[%emt 0:04:30]} 17. Nxd7 {[%emt 0:05:30]} Qxd7 {[%emt 0:02:30]} 18. b4 {[%emt 0:07:30]} g5 {[%emt 0:01:30]} 19. Rab1 {[%emt 0:01:30]} a6 {[%emt 0:01:30]} 20. Ne5 {[%emt 0:02:30]} Qe8 {[%emt 0:00:30]} (20... Qg7 $16 {keeps fighting.} 21. b5 axb5) 21. b5 $18 {[%emt 0:17:30]} axb5 {[%emt 0:00:30]} 22. axb5 {[%emt 0:00:30]} cxb5 {[%emt 0:01:30]} 23. f3 {[%emt 0:00:30]} Nf6 {[%emt 0:00:00]} 24. Qd2 {[%emt 0:00:00]} h6 {[%emt 0:02:00]} 25. Qb4 {[%emt 0:06:00] White is much more active.} Nd7 {[%emt 0:03:30]} 26. Nxd7 {[%emt 0:01:30]} (26. Qxb5 Nxe5 27. dxe5 Qc6 $11) 26... Qxd7 {[%emt 0:00:00]} 27. Qxb5 {[%emt 0:00:30]} Rf7 {[%emt 0:01:00]} 28. Qxd7 {[%emt 0:00:30]} Rxd7 {[%emt 0:00:00]} 29. Rb6 {[%emt 0:00:00]} Kf7 {[%emt 0:00:00]} (29... Bf7 $142) 30. Rfb1 {[%emt 0:00:00]} ({White should try} 30. e4 $16) 30... Ra7 $14 {[%emt 0:00:30]} 31. e3 {[%emt 0:00:30]} Ke7 {[%emt 0:00:30]} 32. Kf2 {[%emt 0:01:30]} Be8 {[%emt 0:00:30]} 33. Bf1 {[%emt 0:00:30] next Bb5 is good for White.} Rc7 $1 {[%emt 0:00:30]} 34. R1b2 {[%emt 0:00:30]} Bc6 {[%emt 0:00:30]} 35. Bb5 {[%emt 0:01:30]} Bxb5 {[%emt 0:01:30]} (35... h5 $11) 36. R6xb5 $11 {[%emt 0:00:00][%mdl 4096] Endgame KRR-KRR} Kd7 {[%emt 0:00:30]} 37. Rb6 {[%emt 0:00:00]} Ke7 {[%emt 0:00:30]} 38. g4 {[%emt 0:01:30] [#] Threatens to win with gxf5.} fxg4 {[%emt 0:00:30]} 39. fxg4 {[%emt 0:00:00]} Kf7 {[%emt 0:00:30]} 40. e4 {[%emt 0:03:00]} dxe4 {[%emt 0:00:30][%cal Oe6e5]} 41. Ke3 {[%emt 0:00:30]} e5 {[%emt 0:01:30]} (41... Ke7 $142) 42. d5 $16 {[%emt 0:03:30]} (42. Rxh6 $6 exd4+ 43. Kxe4 (43. Kxd4 Ra4+ 44. Kd5 Rd7+ 45. Ke5 Kg7 $14) 43... Rxc5 $14) (42. dxe5 $6 Rxc5 43. Kd4 (43. Rxh6 Rxe5 44. Rh7+ Kg6 $11) (43. Kxe4 Ra4+ 44. Kd3 Rd5+ 45. Kc3 Rc5+ 46. Kd3 Rd5+ 47. Kc3 Rxe5 $11) (43. Rxb7+ Rxb7 44. Rxb7+ Ke6 $11) 43... Rc7 $14) 42... Rxc5 {[%emt 0:01:30]} 43. Rxb7+ {[%emt 0:01:48]} ({Better is} 43. Rf2+ $16 Ke8 44. Re6+ (44. Kxe4 Ra4+ 45. Kxe5 Rc7 $14) (44. Rxh6 Rxd5 45. Kxe4 Rb5 $11) 44... Kd7 45. Rf7+ (45. Kxe4 Ra4+ 46. Ke3 Rxd5 $15) (45. Rxe5 Rc4 $17) 45... Kd8 46. Kxe4) 43... Rxb7 $11 {[%emt 0:00:30]} 44. Rxb7+ $16 {[%emt 0:00:12] KR-KR} Kf6 {[%emt 0:00:00]} 45. Rb6+ {[%emt 0:00:30]} Kg7 $2 {[%emt 0:00:00][%mdl 8192]} (45... Ke7 $11 {and Black is okay.}) 46. Kxe4 $18 {[%emt 0:00:30]} Rc2 {[%emt 0:00:30]} 47. Re6 $2 {[%emt 0:01:46]} (47. h3 $18 Rc3 48. Re6 (48. Kxe5 Rxh3 49. Rb7+ Kf8 $16) (48. d6 Kf6 $16)) 47... Rxh2 $11 {[%emt 0:00:30]} 48. Rxe5 {[%emt 0:00:19] [#] Black must now prevent d6.} ({Don't take} 48. Kxe5 Kf7 $14) 48... Kf6 {[%emt 0:00:30] ( -> ...Re2+)} 49. Re6+ {[%emt 0:00:10]} Kf7 {[%emt 0:00:00]} 50. Ke5 {[%emt 0:03:01]} Re2+ {[%emt 0:01:00]} 51. Kd6 {[%emt 0:00:04]} Ra2 {[%emt 0:00:00]} 52. Re4 {[%emt 0:00:07] Strongly threatening Kc6.} Ra6+ {[%emt 0:00:00][%mdl 8192]} (52... Rh2 $11) 53. Kc7 $18 {[%emt 0:00:15] d6 would kill now.} h5 {[%emt 0:01:30]} 54. gxh5 {[%emt 0:00:44] White threatens d6 and mate.} Kf6 {[%emt 0:00:30]} 55. d6 {[%emt 0:00:13]} Kf5 {[%emt 0:00:00]} 56. Re8 {[%emt 0:00:20] Weighted Error Value: White=0.24 (precise) /Black=0.43} 1-0